[Event "Titled Tuesday Blitz June 13 Late 2023"]
[White "Rios Escobar, Adan"]
[Black "Djordjevic, Vuk"]
[WhiteFideId "3403645"]
[BlackFideId "902098"]
[WhiteElo "2480"]
[BlackElo "2463"]
[Result "0-1"]
[Round "2"]
[TimeControl "180+2"]
[Date "2023.06.13"]
[WhiteClock "0:00:00"]
[BlackClock "0:00:04"]
[Board "62"]

1. d4 {[%clk 0:02:54]}  Nf6 {[%clk 0:02:59]} 2. g3 {[%clk 0:02:54]}  e6 {[%clk 0:03:00]} 3. c4 {[%clk 0:02:54]}  d5 {[%clk 0:02:59]} 4. Bg2 {[%clk 0:02:52]}  Bb4+ {[%clk 0:02:57]} 5. Nd2 {[%clk 0:02:52]}  O-O {[%clk 0:02:57]} 6. Nf3 {[%clk 0:02:51]}  dxc4 {[%clk 0:02:55]} 7. a3 {[%clk 0:02:50]}  Ba5 {[%clk 0:02:49]} 8. O-O {[%clk 0:02:48]}  c3 {[%clk 0:02:47]} 9. Nc4 {[%clk 0:02:48]}  cxb2 {[%clk 0:02:47]} 10. Bxb2 {[%clk 0:02:49]}  c6 {[%clk 0:02:37]} 11. Nxa5 {[%clk 0:02:26]}  Qxa5 {[%clk 0:02:37]} 12. Ne5 {[%clk 0:02:24]}  Nbd7 {[%clk 0:02:30]} 13. Nc4 {[%clk 0:02:23]}  Qc7 {[%clk 0:02:28]} 14. Qb3 {[%clk 0:02:16]}  b5 {[%clk 0:02:20]} 15. Ne5 {[%clk 0:01:52]}  Nxe5 {[%clk 0:02:20]} 16. dxe5 {[%clk 0:01:51]}  Nd7 {[%clk 0:02:20]} 17. Rac1 {[%clk 0:01:49]}  Bb7 {[%clk 0:02:20]} 18. Rfd1 {[%clk 0:01:37]}  Nxe5 {[%clk 0:02:10]} 19. Qc3 {[%clk 0:01:02]}  f6 {[%clk 0:02:02]} 20. Ba1 {[%clk 0:00:50]}  Rfd8 {[%clk 0:01:57]} 21. Qb3 {[%clk 0:00:48]}  Nc4 {[%clk 0:01:54]} 22. Rd3 {[%clk 0:00:41]}  Kf7 {[%clk 0:01:11]} 23. h4 {[%clk 0:00:37]}  a6 {[%clk 0:01:06]} 24. h5 {[%clk 0:00:35]}  Rxd3 {[%clk 0:01:00]} 25. exd3 {[%clk 0:00:33]}  Nd6 {[%clk 0:00:33]} 26. h6 {[%clk 0:00:31]}  Nf5 {[%clk 0:00:14]} 27. hxg7 {[%clk 0:00:28]}  Nxg7 {[%clk 0:00:15]} 28. Qc3 {[%clk 0:00:17]}  Qe7 {[%clk 0:00:13]} 29. Bb2 {[%clk 0:00:11]}  Rd8 {[%clk 0:00:13]} 30. Qc2 {[%clk 0:00:07]}  Nf5 {[%clk 0:00:12]} 31. Qe2 {[%clk 0:00:07]}  Kf8 {[%clk 0:00:10]} 32. Be4 {[%clk 0:00:07]}  Qf7 {[%clk 0:00:09]} 33. Qf3 {[%clk 0:00:05]}  Nd4 {[%clk 0:00:09]} 34. Qd1 {[%clk 0:00:04]}  e5 {[%clk 0:00:06]} 35. Bg2 {[%clk 0:00:01]}  c5 {[%clk 0:00:04]} 36. a4 {[%clk 0:00:01]}  Bxg2 {[%clk 0:00:04]} 37. Kxg2 {[%clk 0:00:00]}  Qb7+ {[%clk 0:00:04]} 0-1


[Site "https://www.chess.com"]

[Event "Titled Tuesday Blitz June 13 Late 2023"]
[White "Rama, Tejas"]
[Black "Yanchenko, Roman"]
[WhiteFideId "30907381"]
[BlackFideId "4137329"]
[WhiteElo "2089"]
[BlackElo "2491"]
[Result "0-1"]
[Round "2"]
[TimeControl "180+2"]
[Date "2023.06.13"]
[WhiteClock "0:00:03"]
[BlackClock "0:00:53"]
[Board "63"]

1. d4 {[%clk 0:03:00]}  d5 {[%clk 0:02:59]} 2. c4 {[%clk 0:03:00]}  c6 {[%clk 0:03:00]} 3. Nc3 {[%clk 0:03:00]}  Nf6 {[%clk 0:03:00]} 4. e3 {[%clk 0:03:00]}  a6 {[%clk 0:02:59]} 5. Nf3 {[%clk 0:03:00]}  Bg4 {[%clk 0:02:58]} 6. Qb3 {[%clk 0:02:49]}  Ra7 {[%clk 0:02:58]} 7. cxd5 {[%clk 0:02:47]}  Bxf3 {[%clk 0:02:57]} 8. gxf3 {[%clk 0:02:46]}  cxd5 {[%clk 0:02:58]} 9. Bd3 {[%clk 0:02:39]}  e6 {[%clk 0:02:57]} 10. f4 {[%clk 0:02:34]}  Be7 {[%clk 0:02:55]} 11. Bd2 {[%clk 0:02:32]}  O-O {[%clk 0:02:54]} 12. f5 {[%clk 0:02:27]}  b5 {[%clk 0:02:52]} 13. Ne2 {[%clk 0:02:19]}  Qd7 {[%clk 0:02:47]} 14. fxe6 {[%clk 0:02:13]}  fxe6 {[%clk 0:02:48]} 15. a4 {[%clk 0:02:11]}  b4 {[%clk 0:02:44]} 16. f3 {[%clk 0:01:50]}  Nc6 {[%clk 0:02:43]} 17. a5 {[%clk 0:01:50]}  Rb8 {[%clk 0:02:25]} 18. O-O {[%clk 0:01:46]}  Bd8 {[%clk 0:02:22]} 19. Kh1 {[%clk 0:01:25]}  Nxa5 {[%clk 0:02:22]} 20. Qc2 {[%clk 0:01:24]}  b3 {[%clk 0:02:05]} 21. Qd1 {[%clk 0:00:49]}  Nc4 {[%clk 0:02:05]} 22. Bc1 {[%clk 0:00:48]}  a5 {[%clk 0:01:59]} 23. e4 {[%clk 0:00:48]}  Qf7 {[%clk 0:01:48]} 24. e5 {[%clk 0:00:45]}  Nh5 {[%clk 0:01:48]} 25. f4 {[%clk 0:00:43]}  g6 {[%clk 0:01:48]} 26. Ng3 {[%clk 0:00:38]}  Ng7 {[%clk 0:01:47]} 27. Qe2 {[%clk 0:00:33]}  Rc7 {[%clk 0:01:42]} 28. Bd2 {[%clk 0:00:27]}  Ra8 {[%clk 0:01:31]} 29. Bc3 {[%clk 0:00:21]}  a4 {[%clk 0:01:25]} 30. Rfb1 {[%clk 0:00:18]}  Nf5 {[%clk 0:01:20]} 31. Nxf5 {[%clk 0:00:16]}  gxf5 {[%clk 0:01:21]} 32. Rg1+ {[%clk 0:00:15]}  Kh8 {[%clk 0:01:22]} 33. Rg2 {[%clk 0:00:15]}  Bh4 {[%clk 0:01:16]} 34. Be1 {[%clk 0:00:10]}  Bxe1 {[%clk 0:01:15]} 35. Qxe1 {[%clk 0:00:11]}  Qh5 {[%clk 0:01:08]} 36. Qb4 {[%clk 0:00:10]}  Ne3 {[%clk 0:01:00]} 37. Rg3 {[%clk 0:00:07]}  Ng4 {[%clk 0:00:58]} 38. h3 {[%clk 0:00:07]}  Rg7 {[%clk 0:00:55]} 39. Rxa4 {[%clk 0:00:04]}  Rag8 {[%clk 0:00:55]} 40. Qxb3 {[%clk 0:00:02]}  Nf2+ {[%clk 0:00:54]} 41. Kh2 {[%clk 0:00:03]}  Qxh3+ {[%clk 0:00:53]} 0-1


[Site "https://www.chess.com"]

[Event "Titled Tuesday Blitz June 13 Late 2023"]
[White "Lin, Dachey"]
[Black "Wizard_of_Odds"]
[WhiteFideId "2029650"]
[WhiteElo "2313"]
[BlackElo "2459"]
[Result "0-1"]
[Round "2"]
[TimeControl "180+2"]
[Date "2023.06.13"]
[WhiteClock "0:00:14"]
[BlackClock "0:00:16"]
[Board "64"]

1. g4 {[%clk 0:03:00]}  e5 {[%clk 0:02:58]} 2. d4 {[%clk 0:03:01]}  exd4 {[%clk 0:02:58]} 3. Qxd4 {[%clk 0:03:02]}  Nc6 {[%clk 0:02:58]} 4. Qe4+ {[%clk 0:03:02]}  Qe7 {[%clk 0:02:58]} 5. Qxe7+ {[%clk 0:03:00]}  Bxe7 {[%clk 0:02:58]} 6. Bg2 {[%clk 0:02:58]}  Nf6 {[%clk 0:02:52]} 7. g5 {[%clk 0:02:58]}  Ng4 {[%clk 0:02:48]} 8. f4 {[%clk 0:02:53]}  Bc5 {[%clk 0:02:45]} 9. Nc3 {[%clk 0:02:23]}  a6 {[%clk 0:01:54]} 10. Nd5 {[%clk 0:02:22]}  Kd8 {[%clk 0:01:51]} 11. Nf3 {[%clk 0:01:56]}  d6 {[%clk 0:01:40]} 12. h3 {[%clk 0:01:54]}  Nf2 {[%clk 0:01:37]} 13. Rf1 {[%clk 0:01:53]}  Ne4 {[%clk 0:01:37]} 14. Be3 {[%clk 0:01:31]}  Bxe3 {[%clk 0:01:36]} 15. Nxe3 {[%clk 0:01:32]}  Re8 {[%clk 0:01:36]} 16. Nd2 {[%clk 0:01:05]}  Ng3 {[%clk 0:01:04]} 17. Rf3 {[%clk 0:01:04]}  Nf5 {[%clk 0:01:05]} 18. Ndf1 {[%clk 0:00:54]}  Ncd4 {[%clk 0:00:59]} 19. Ng4 {[%clk 0:00:36]}  Nxc2+ {[%clk 0:00:55]} 20. Kd2 {[%clk 0:00:36]}  Nxa1 {[%clk 0:00:55]} 21. Rc3 {[%clk 0:00:37]}  Nd4 {[%clk 0:00:53]} 22. e3 {[%clk 0:00:36]}  Bxg4 {[%clk 0:00:47]} 23. hxg4 {[%clk 0:00:34]}  Nac2 {[%clk 0:00:45]} 24. exd4 {[%clk 0:00:31]}  Nxd4 {[%clk 0:00:44]} 25. Bd5 {[%clk 0:00:26]}  Ne6 {[%clk 0:00:40]} 26. Bxb7 {[%clk 0:00:25]}  Rb8 {[%clk 0:00:40]} 27. Bc6 {[%clk 0:00:26]}  Rxb2+ {[%clk 0:00:39]} 28. Kc1 {[%clk 0:00:24]}  Rxa2 {[%clk 0:00:38]} 29. Bxe8 {[%clk 0:00:23]}  Kxe8 {[%clk 0:00:39]} 30. Ne3 {[%clk 0:00:22]}  Kd7 {[%clk 0:00:33]} 31. Nf5 {[%clk 0:00:17]}  g6 {[%clk 0:00:29]} 32. Nh6 {[%clk 0:00:17]}  Nxf4 {[%clk 0:00:27]} 33. Rf3 {[%clk 0:00:17]}  Ra4 {[%clk 0:00:27]} 34. Nxf7 {[%clk 0:00:17]}  Ne2+ {[%clk 0:00:21]} 35. Kd2 {[%clk 0:00:17]}  Nd4 {[%clk 0:00:22]} 36. Re3 {[%clk 0:00:15]}  Ne6 {[%clk 0:00:20]} 37. Rg3 {[%clk 0:00:13]}  Rd4+ {[%clk 0:00:19]} 38. Ke3 {[%clk 0:00:14]}  c5 {[%clk 0:00:19]} 39. Nh6 {[%clk 0:00:14]}  a5 {[%clk 0:00:19]} 40. Ng8 {[%clk 0:00:15]}  Kc6 {[%clk 0:00:18]} 41. Nf6 {[%clk 0:00:15]}  Nxg5 {[%clk 0:00:17]} 42. Ng8 {[%clk 0:00:15]}  Rb4 {[%clk 0:00:17]} 43. Ne7+ {[%clk 0:00:15]}  Kd7 {[%clk 0:00:16]} 44. Nd5 {[%clk 0:00:15]}  Rb3+ {[%clk 0:00:17]} 45. Kf4 {[%clk 0:00:14]}  Ne6+ {[%clk 0:00:16]} 0-1


[Site "https://www.chess.com"]

[Event "Titled Tuesday Blitz June 13 Late 2023"]
[White "Sztokbant, Bernardo Vainzoff"]
[Black "Simonian, Hrair"]
[WhiteFideId "2115956"]
[BlackFideId "13302337"]
[WhiteElo "2222"]
[BlackElo "2447"]
[Result "0-1"]
[Round "2"]
[TimeControl "180+2"]
[Date "2023.06.13"]
[WhiteClock "0:00:25"]
[BlackClock "0:01:03"]
[Board "65"]

1. e4 {[%clk 0:03:00]}  c5 {[%clk 0:02:59]} 2. Nf3 {[%clk 0:02:59]}  d6 {[%clk 0:02:59]} 3. d4 {[%clk 0:02:57]}  cxd4 {[%clk 0:03:00]} 4. Nxd4 {[%clk 0:02:57]}  Nf6 {[%clk 0:03:01]} 5. Nc3 {[%clk 0:02:57]}  a6 {[%clk 0:03:01]} 6. Bg5 {[%clk 0:02:58]}  Nbd7 {[%clk 0:03:00]} 7. f4 {[%clk 0:02:58]}  Qc7 {[%clk 0:02:53]} 8. Qf3 {[%clk 0:02:57]}  h6 {[%clk 0:02:52]} 9. Bh4 {[%clk 0:02:56]}  g5 {[%clk 0:02:49]} 10. fxg5 {[%clk 0:02:56]}  hxg5 {[%clk 0:02:49]} 11. Bxg5 {[%clk 0:02:55]}  Qc5 {[%clk 0:02:50]} 12. Be3 {[%clk 0:02:54]}  Ne5 {[%clk 0:02:49]} 13. Qe2 {[%clk 0:02:53]}  Neg4 {[%clk 0:02:46]} 14. Bg1 {[%clk 0:02:51]}  Bh6 {[%clk 0:02:46]} 15. Rd1 {[%clk 0:02:49]}  Qg5 {[%clk 0:02:29]} 16. Nf3 {[%clk 0:02:43]}  Qa5 {[%clk 0:02:26]} 17. h3 {[%clk 0:02:41]}  Bf4 {[%clk 0:02:25]} 18. Bd4 {[%clk 0:02:39]}  Bg3+ {[%clk 0:02:18]} 19. Kd2 {[%clk 0:02:38]}  Bf4+ {[%clk 0:02:18]} 20. Ke1 {[%clk 0:02:37]}  Bd7 {[%clk 0:02:14]} 21. Rg1 {[%clk 0:02:35]}  Bg3+ {[%clk 0:02:05]} 22. Kd2 {[%clk 0:02:35]}  Bf4+ {[%clk 0:02:05]} 23. Ke1 {[%clk 0:02:35]}  Bb5 {[%clk 0:02:05]} 24. Rd3 {[%clk 0:02:27]}  Bg3+ {[%clk 0:02:02]} 25. Kd1 {[%clk 0:02:19]}  Bxd3 {[%clk 0:01:56]} 26. cxd3 {[%clk 0:02:20]}  Ne5 {[%clk 0:01:55]} 27. Qe3 {[%clk 0:02:06]}  Rc8 {[%clk 0:01:48]} 28. Nxe5 {[%clk 0:01:44]}  Bxe5 {[%clk 0:01:49]} 29. Be2 {[%clk 0:01:39]}  Qb4 {[%clk 0:01:37]} 30. Bxe5 {[%clk 0:01:37]}  dxe5 {[%clk 0:01:38]} 31. Kc2 {[%clk 0:01:33]}  Qd4 {[%clk 0:01:38]} 32. Kd2 {[%clk 0:01:30]}  Nxe4+ {[%clk 0:01:37]} 33. Nxe4 {[%clk 0:01:29]}  Qxb2+ {[%clk 0:01:37]} 34. Ke1 {[%clk 0:01:27]}  Rc2 {[%clk 0:01:33]} 35. Kf2 {[%clk 0:00:58]}  f5 {[%clk 0:01:29]} 36. Ng5 {[%clk 0:00:58]}  f4 {[%clk 0:01:21]} 37. Qe4 {[%clk 0:00:58]}  Qb6+ {[%clk 0:01:21]} 38. Kf3 {[%clk 0:00:56]}  Qxg1 {[%clk 0:01:14]} 39. Qg6+ {[%clk 0:00:50]}  Kd8 {[%clk 0:01:06]} 40. Nf7+ {[%clk 0:00:48]}  Kc7 {[%clk 0:01:05]} 41. Nxh8 {[%clk 0:00:48]}  Qe3+ {[%clk 0:01:05]} 42. Kg4 {[%clk 0:00:47]}  Qxe2+ {[%clk 0:01:06]} 43. Kh4 {[%clk 0:00:45]}  Qf2+ {[%clk 0:01:03]} 44. Kh5 {[%clk 0:00:45]}  Qxg2 {[%clk 0:01:04]} 45. Qe6 {[%clk 0:00:36]}  Qg7 {[%clk 0:01:02]} 46. Ng6 {[%clk 0:00:33]}  Rc6 {[%clk 0:00:59]} 47. Qxe5+ {[%clk 0:00:26]}  Qxe5+ {[%clk 0:00:59]} 48. Nxe5 {[%clk 0:00:27]}  Rc5 {[%clk 0:01:00]} 49. d4 {[%clk 0:00:27]}  Rxe5+ {[%clk 0:01:01]} 50. dxe5 {[%clk 0:00:28]}  f3 {[%clk 0:01:02]} 51. Kg4 {[%clk 0:00:25]}  f2 {[%clk 0:01:03]} 0-1


[Site "https://www.chess.com"]

[Event "Titled Tuesday Blitz June 13 Late 2023"]
[White "Gasparyan, David"]
[Black "Tejedor Fuente, Enrique"]
[WhiteFideId "13311980"]
[BlackFideId "2299100"]
[WhiteElo "2435"]
[BlackElo "2496"]
[Result "1/2-1/2"]
[Round "2"]
[TimeControl "180+2"]
[Date "2023.06.13"]
[WhiteClock "0:00:03"]
[BlackClock "0:00:03"]
[Board "68"]

1. Nf3 {[%clk 0:02:59]}  d6 {[%clk 0:02:45]} 2. d4 {[%clk 0:02:57]}  g6 {[%clk 0:02:39]} 3. g3 {[%clk 0:02:57]}  Bg7 {[%clk 0:02:38]} 4. Bg2 {[%clk 0:02:57]}  Nf6 {[%clk 0:02:37]} 5. O-O {[%clk 0:02:57]}  O-O {[%clk 0:02:37]} 6. Nc3 {[%clk 0:02:55]}  a6 {[%clk 0:02:34]} 7. e4 {[%clk 0:02:35]}  Nc6 {[%clk 0:02:29]} 8. Re1 {[%clk 0:02:28]}  e5 {[%clk 0:02:22]} 9. dxe5 {[%clk 0:02:08]}  Nxe5 {[%clk 0:02:17]} 10. Nxe5 {[%clk 0:02:04]}  dxe5 {[%clk 0:02:16]} 11. h3 {[%clk 0:02:05]}  Be6 {[%clk 0:02:15]} 12. Be3 {[%clk 0:02:02]}  Nd7 {[%clk 0:02:08]} 13. Qd2 {[%clk 0:01:53]}  c6 {[%clk 0:02:05]} 14. Rad1 {[%clk 0:01:49]}  Re8 {[%clk 0:02:05]} 15. Na4 {[%clk 0:01:42]}  Bf8 {[%clk 0:02:03]} 16. b4 {[%clk 0:01:17]}  b5 {[%clk 0:01:47]} 17. Nb2 {[%clk 0:01:15]}  Qc7 {[%clk 0:01:33]} 18. a4 {[%clk 0:01:11]}  Nb6 {[%clk 0:01:18]} 19. Ra1 {[%clk 0:01:00]}  Red8 {[%clk 0:01:02]} 20. Qc3 {[%clk 0:01:00]}  Nc4 {[%clk 0:00:58]} 21. Nd3 {[%clk 0:00:59]}  Nxe3 {[%clk 0:00:53]} 22. Rxe3 {[%clk 0:01:00]}  Rd4 {[%clk 0:00:46]} 23. axb5 {[%clk 0:00:57]}  Rc4 {[%clk 0:00:45]} 24. Qxe5 {[%clk 0:00:52]}  cxb5 {[%clk 0:00:40]} 25. Qxc7 {[%clk 0:00:49]}  Rxc7 {[%clk 0:00:41]} 26. e5 {[%clk 0:00:48]}  Raa7 {[%clk 0:00:38]} 27. Re2 {[%clk 0:00:28]}  g5 {[%clk 0:00:36]} 28. f4 {[%clk 0:00:28]}  h6 {[%clk 0:00:35]} 29. Rb1 {[%clk 0:00:21]}  a5 {[%clk 0:00:33]} 30. bxa5 {[%clk 0:00:21]}  Rxa5 {[%clk 0:00:34]} 31. Rb2 {[%clk 0:00:17]}  Ra1+ {[%clk 0:00:32]} 32. Kh2 {[%clk 0:00:17]}  Be7 {[%clk 0:00:32]} 33. Rxb5 {[%clk 0:00:15]}  Kg7 {[%clk 0:00:31]} 34. g4 {[%clk 0:00:15]}  gxf4 {[%clk 0:00:29]} 35. Nxf4 {[%clk 0:00:16]}  Bc4 {[%clk 0:00:30]} 36. Nh5+ {[%clk 0:00:15]}  Kg6 {[%clk 0:00:20]} 37. Be4+ {[%clk 0:00:15]}  Kg5 {[%clk 0:00:19]} 38. Kg3 {[%clk 0:00:15]}  Rg1+ {[%clk 0:00:07]} 39. Rg2 {[%clk 0:00:15]}  Rxg2+ {[%clk 0:00:05]} 40. Bxg2 {[%clk 0:00:16]}  Bxb5 {[%clk 0:00:04]} 41. h4+ {[%clk 0:00:16]}  Kg6 {[%clk 0:00:04]} 42. Be4+ {[%clk 0:00:16]}  f5 {[%clk 0:00:05]} 43. exf6+ {[%clk 0:00:16]}  Kf7 {[%clk 0:00:04]} 44. Bd5+ {[%clk 0:00:14]}  Kf8 {[%clk 0:00:04]} 45. fxe7+ {[%clk 0:00:13]}  Kxe7 {[%clk 0:00:05]} 46. Be4 {[%clk 0:00:10]}  Bc6 {[%clk 0:00:05]} 47. Bd3 {[%clk 0:00:10]}  Ba4 {[%clk 0:00:06]} 48. Nf4 {[%clk 0:00:09]}  Rc5 {[%clk 0:00:06]} 49. c4 {[%clk 0:00:08]}  Bb3 {[%clk 0:00:06]} 50. Nd5+ {[%clk 0:00:08]}  Kf7 {[%clk 0:00:06]} 51. Ne3 {[%clk 0:00:07]}  Ra5 {[%clk 0:00:06]} 52. Kf4 {[%clk 0:00:07]}  Ra1 {[%clk 0:00:06]} 53. Be4 {[%clk 0:00:07]}  Rc1 {[%clk 0:00:05]} 54. Nf5 {[%clk 0:00:06]}  Rf1+ {[%clk 0:00:03]} 55. Ke5 {[%clk 0:00:05]}  h5 {[%clk 0:00:03]} 56. Ng3 {[%clk 0:00:03]}  Rg1 {[%clk 0:00:02]} 57. Nxh5 {[%clk 0:00:01]}  Rxg4 {[%clk 0:00:03]} 58. Nf4 {[%clk 0:00:01]}  Rxh4 {[%clk 0:00:03]} 59. Bd5+ {[%clk 0:00:02]}  Ke8 {[%clk 0:00:03]} 60. c5 {[%clk 0:00:02]}  Bxd5 {[%clk 0:00:03]} 61. Nxd5 {[%clk 0:00:03]}  Rh5+ {[%clk 0:00:03]} 62. Kd6 {[%clk 0:00:04]}  Rh6+ {[%clk 0:00:03]} 63. Kc7 {[%clk 0:00:04]}  Rh7+ {[%clk 0:00:04]} 64. Kb6 {[%clk 0:00:05]}  Kd8 {[%clk 0:00:04]} 65. c6 {[%clk 0:00:05]}  Rh6 {[%clk 0:00:04]} 66. Kb7 {[%clk 0:00:03]}  Rxc6 {[%clk 0:00:03]} 67. Kxc6 {[%clk 0:00:03]} 1/2-1/2


[Site "https://www.chess.com"]

[Event "Titled Tuesday Blitz June 13 Late 2023"]
[White "Zwirs, Nico"]
[Black "Gil Alba, Hector Luis"]
[WhiteFideId "1036432"]
[BlackFideId "3504670"]
[WhiteElo "2381"]
[BlackElo "2331"]
[Result "1-0"]
[Round "2"]
[TimeControl "180+2"]
[Date "2023.06.13"]
[WhiteClock "0:00:10"]
[BlackClock "0:00:00"]
[Board "69"]

1. e4 {[%clk 0:03:00]}  c5 {[%clk 0:02:58]} 2. Nf3 {[%clk 0:03:00]}  Nc6 {[%clk 0:02:58]} 3. d4 {[%clk 0:03:01]}  cxd4 {[%clk 0:02:58]} 4. Nxd4 {[%clk 0:03:02]}  e5 {[%clk 0:02:58]} 5. Nb5 {[%clk 0:03:01]}  d6 {[%clk 0:02:56]} 6. c4 {[%clk 0:03:02]}  a6 {[%clk 0:02:56]} 7. N5c3 {[%clk 0:03:01]}  Be7 {[%clk 0:02:56]} 8. Be2 {[%clk 0:03:00]}  Bg5 {[%clk 0:02:54]} 9. O-O {[%clk 0:03:00]}  Bxc1 {[%clk 0:02:52]} 10. Qxc1 {[%clk 0:03:01]}  Nf6 {[%clk 0:02:51]} 11. Na3 {[%clk 0:02:59]}  Nd4 {[%clk 0:02:49]} 12. Qd2 {[%clk 0:02:56]}  Qb6 {[%clk 0:02:36]} 13. Rfd1 {[%clk 0:02:46]}  Be6 {[%clk 0:02:30]} 14. Rab1 {[%clk 0:02:30]}  O-O {[%clk 0:02:27]} 15. Nc2 {[%clk 0:02:27]}  Nxe2+ {[%clk 0:02:22]} 16. Qxe2 {[%clk 0:02:26]}  Qc6 {[%clk 0:02:19]} 17. b3 {[%clk 0:02:11]}  Rac8 {[%clk 0:02:10]} 18. Nb4 {[%clk 0:02:03]}  Qb6 {[%clk 0:01:59]} 19. Nbd5 {[%clk 0:02:01]}  Nxd5 {[%clk 0:01:53]} 20. Nxd5 {[%clk 0:02:02]}  Bxd5 {[%clk 0:01:51]} 21. Rxd5 {[%clk 0:02:03]}  f5 {[%clk 0:01:50]} 22. exf5 {[%clk 0:01:57]}  Rxf5 {[%clk 0:01:48]} 23. Rbd1 {[%clk 0:01:58]}  Rcf8 {[%clk 0:01:41]} 24. Rf1 {[%clk 0:01:28]}  Rf4 {[%clk 0:01:32]} 25. Qd2 {[%clk 0:01:22]}  R8f6 {[%clk 0:01:25]} 26. g3 {[%clk 0:01:14]}  Rf3 {[%clk 0:01:22]} 27. Kg2 {[%clk 0:01:12]}  h6 {[%clk 0:01:19]} 28. Qe2 {[%clk 0:01:00]}  R3f5 {[%clk 0:00:56]} 29. f3 {[%clk 0:00:50]}  Qc6 {[%clk 0:00:53]} 30. a4 {[%clk 0:00:42]}  Qb6 {[%clk 0:00:50]} 31. Rd3 {[%clk 0:00:39]}  e4 {[%clk 0:00:45]} 32. Qxe4 {[%clk 0:00:33]}  Re5 {[%clk 0:00:45]} 33. Qg4 {[%clk 0:00:23]}  Re2+ {[%clk 0:00:43]} 34. Kh3 {[%clk 0:00:23]}  Kh7 {[%clk 0:00:42]} 35. f4 {[%clk 0:00:21]}  Rf2 {[%clk 0:00:38]} 36. Rxf2 {[%clk 0:00:20]}  Qxf2 {[%clk 0:00:36]} 37. Qf3 {[%clk 0:00:21]}  Qe1 {[%clk 0:00:34]} 38. Rd1 {[%clk 0:00:19]}  Qe6+ {[%clk 0:00:33]} 39. Kg2 {[%clk 0:00:19]}  b6 {[%clk 0:00:29]} 40. Rd2 {[%clk 0:00:20]}  Qe1 {[%clk 0:00:26]} 41. Rd1 {[%clk 0:00:19]}  Qe7 {[%clk 0:00:24]} 42. Qd3+ {[%clk 0:00:19]}  Kh8 {[%clk 0:00:21]} 43. Rd2 {[%clk 0:00:20]}  Re6 {[%clk 0:00:21]} 44. Qf3 {[%clk 0:00:20]}  Re3 {[%clk 0:00:20]} 45. Qa8+ {[%clk 0:00:19]}  Kh7 {[%clk 0:00:20]} 46. Qd5 {[%clk 0:00:20]}  Rxb3 {[%clk 0:00:17]} 47. c5 {[%clk 0:00:20]}  Re3 {[%clk 0:00:14]} 48. cxd6 {[%clk 0:00:19]}  Re2+ {[%clk 0:00:12]} 49. Rxe2 {[%clk 0:00:13]}  Qxe2+ {[%clk 0:00:11]} 50. Kg1 {[%clk 0:00:13]}  Qe1+ {[%clk 0:00:11]} 51. Kg2 {[%clk 0:00:14]}  Qe2+ {[%clk 0:00:11]} 52. Kh3 {[%clk 0:00:14]}  Qf1+ {[%clk 0:00:09]} 53. Kh4 {[%clk 0:00:12]}  Qe1 {[%clk 0:00:05]} 54. Qd3+ {[%clk 0:00:08]}  g6 {[%clk 0:00:04]} 55. d7 {[%clk 0:00:08]}  Qe7+ {[%clk 0:00:03]} 56. Kh3 {[%clk 0:00:08]}  Qe6+ {[%clk 0:00:03]} 57. Kg2 {[%clk 0:00:09]}  Qa2+ {[%clk 0:00:01]} 58. Kh3 {[%clk 0:00:09]}  Qe6+ {[%clk 0:00:00]} 59. f5 {[%clk 0:00:10]} 1-0


[Site "https://www.chess.com"]

[Event "Titled Tuesday Blitz June 13 Late 2023"]
[White "Buchenau, Frank"]
[Black "Khoroshev, Nikita"]
[WhiteFideId "4604350"]
[BlackFideId "14200287"]
[WhiteElo "2157"]
[BlackElo "2354"]
[Result "1-0"]
[Round "2"]
[TimeControl "180+2"]
[Date "2023.06.13"]
[WhiteClock "0:02:40"]
[BlackClock "0:00:00"]
[Board "70"]

1. e4 {[%clk 0:03:00]}  d5 {[%clk 0:02:54]} 2. exd5 {[%clk 0:02:59]}  Nf6 {[%clk 0:02:55]} 3. Nf3 {[%clk 0:02:56]}  Nxd5 {[%clk 0:02:55]} 4. d4 {[%clk 0:02:56]}  Bf5 {[%clk 0:02:56]} 5. Bd3 {[%clk 0:02:52]}  Bxd3 {[%clk 0:02:56]} 6. Qxd3 {[%clk 0:02:52]}  c6 {[%clk 0:02:56]} 7. O-O {[%clk 0:02:52]}  e6 {[%clk 0:02:56]} 8. c4 {[%clk 0:02:52]}  Nf6 {[%clk 0:02:56]} 9. Nc3 {[%clk 0:02:52]}  Be7 {[%clk 0:02:56]} 10. Re1 {[%clk 0:02:52]}  O-O {[%clk 0:02:57]} 11. Bf4 {[%clk 0:02:50]}  Nbd7 {[%clk 0:02:51]} 12. Rad1 {[%clk 0:02:50]}  Re8 {[%clk 0:02:51]} 13. d5 {[%clk 0:02:45]}  exd5 {[%clk 0:02:51]} 14. cxd5 {[%clk 0:02:45]}  cxd5 {[%clk 0:02:36]} 15. Nxd5 {[%clk 0:02:42]}  Nxd5 {[%clk 0:01:57]} 16. Qxd5 {[%clk 0:02:41]}  Nf6 {[%clk 0:00:00]} 17. Qxb7 {[%clk 0:02:40]} 1-0


[Site "https://www.chess.com"]

[Event "Titled Tuesday Blitz June 13 Late 2023"]
[White "Myers, Dominique"]
[Black "Papasimakopoulos, Alexandros"]
[WhiteFideId "2041715"]
[BlackFideId "4244125"]
[WhiteElo "1951"]
[BlackElo "2359"]
[Result "0-1"]
[Round "2"]
[TimeControl "180+2"]
[Date "2023.06.13"]
[WhiteClock "0:00:29"]
[BlackClock "0:00:22"]
[Board "71"]

1. e4 {[%clk 0:03:00]}  e6 {[%clk 0:02:59]} 2. d4 {[%clk 0:02:59]}  d5 {[%clk 0:03:00]} 3. e5 {[%clk 0:02:57]}  Bd7 {[%clk 0:02:59]} 4. Nf3 {[%clk 0:02:57]}  a6 {[%clk 0:02:59]} 5. Nbd2 {[%clk 0:02:55]}  c5 {[%clk 0:02:50]} 6. c4 {[%clk 0:02:53]}  dxc4 {[%clk 0:02:48]} 7. Nxc4 {[%clk 0:02:53]}  cxd4 {[%clk 0:02:39]} 8. Qxd4 {[%clk 0:02:49]}  Nc6 {[%clk 0:02:35]} 9. Qg4 {[%clk 0:02:49]}  h5 {[%clk 0:02:31]} 10. Qg3 {[%clk 0:02:48]}  Bb4+ {[%clk 0:02:15]} 11. Bd2 {[%clk 0:02:48]}  Kf8 {[%clk 0:02:13]} 12. O-O-O {[%clk 0:02:47]}  Bxd2+ {[%clk 0:02:04]} 13. Rxd2 {[%clk 0:02:48]}  Qe7 {[%clk 0:02:03]} 14. Kb1 {[%clk 0:02:47]}  Nh6 {[%clk 0:01:57]} 15. Ng5 {[%clk 0:02:37]}  Nf5 {[%clk 0:01:53]} 16. Qf4 {[%clk 0:02:37]}  Nb4 {[%clk 0:01:50]} 17. a3 {[%clk 0:02:31]}  Nd5 {[%clk 0:01:48]} 18. Rxd5 {[%clk 0:02:13]}  exd5 {[%clk 0:01:49]} 19. Nb6 {[%clk 0:02:13]}  Re8 {[%clk 0:01:39]} 20. Bd3 {[%clk 0:02:11]}  Nh6 {[%clk 0:01:16]} 21. Rc1 {[%clk 0:01:50]}  Bc6 {[%clk 0:01:10]} 22. Bxa6 {[%clk 0:01:47]}  g6 {[%clk 0:00:39]} 23. Nf3 {[%clk 0:01:23]}  Kg7 {[%clk 0:00:36]} 24. Bd3 {[%clk 0:01:19]}  Ng4 {[%clk 0:00:33]} 25. Re1 {[%clk 0:01:03]}  Nxf2 {[%clk 0:00:33]} 26. Bc2 {[%clk 0:01:02]}  Ne4 {[%clk 0:00:34]} 27. h3 {[%clk 0:00:50]}  h4 {[%clk 0:00:30]} 28. Bxe4 {[%clk 0:00:44]}  dxe4 {[%clk 0:00:29]} 29. Ng5 {[%clk 0:00:45]}  Rh5 {[%clk 0:00:27]} 30. Nxe4 {[%clk 0:00:41]}  Qxe5 {[%clk 0:00:23]} 31. Qxe5+ {[%clk 0:00:29]}  Rhxe5 {[%clk 0:00:22]} 0-1


[Site "https://www.chess.com"]